fUST/lending_fUST_20251120
["ID","MTS","AMOUNT","RATE_DAILY","PERIOD"]
[394462236,1763600764845,-173.32744706,9.052e-05,2]
[394462237,1763600765114,307.46,1e-05,2]
[394462238,1763600765436,307.46,1e-05,2]
[394462239,1763600765763,307.46,1e-05,2]
[394462240,1763600766053,307.46,1e-05,2]
[394462241,1763600766354,307.46,1e-05,2]
[394462242,1763600766640,307.46,1e-05,2]
[394462243,1763600766980,307.46,1e-05,2]
[394462244,1763600767342,307.46,1e-05,2]
[394462245,1763600767621,307.46,1e-05,2]
[394462246,1763600767927,307.46,1e-05,2]
[394462247,1763600768220,307.46,1e-05,2]
[394462248,1763600768629,307.46,1e-05,2]
[394462249,1763600768912,307.46,1e-05,2]
[394462250,1763600769318,307.46,1e-05,2]
[394462251,1763600769474,307.46,1e-05,2]
[394462252,1763600769766,307.46,1e-05,2]
[394462253,1763600770047,307.46,1e-05,2]
[394462254,1763600770360,307.46,1.1e-05,2]
[394462255,1763600770632,307.46,1.1e-05,2]
[394462256,1763600770818,-229.46608671,9.052e-05,2]
[394462257,1763600770998,307.46,1.1e-05,2]
[394462258,1763600771323,307.46,1.1e-05,2]
[394462259,1763600771660,307.46,1.1e-05,2]
[394462260,1763600771992,307.46,1.1e-05,2]
[394462261,1763600772305,307.46,1.1e-05,2]
[394462262,1763600772583,307.46,1.1e-05,2]
[394462263,1763600772957,307.46,1.1e-05,2]
[394462264,1763600773174,307.46,1.1e-05,2]
[394462265,1763600773460,307.46,1.1e-05,2]
[394462266,1763600773756,307.46,1.1e-05,2]
[394462267,1763600774035,307.46,1.1e-05,2]
[394462268,1763600774397,307.46,1.1e-05,2]
[394462269,1763600774789,307.46,1.1e-05,2]
[394462270,1763600775132,307.46,1.1e-05,2]
[394462271,1763600775509,307.46,1.1e-05,2]
[394462272,1763600775946,307.46,1.1e-05,2]
[394462273,1763600776221,307.46,1.1e-05,2]
[394462274,1763600776509,307.46,1.1e-05,2]
[394462275,1763600776845,307.46,1.1e-05,2]
[394462276,1763600777168,307.46,1.1e-05,2]
[394462277,1763600777445,307.46,1.1e-05,2]
[394462278,1763600777478,-191.30965784,9.052e-05,2]
[394462279,1763600777721,307.46,1.1e-05,2]
[394462280,1763600778028,307.46,1.1e-05,2]
[394462281,1763600793376,-196.59631342,8.961e-05,2]
[394462282,1763600793398,-58.78723099,9.051e-05,2]
[394462283,1763600795156,-358.17707818,9.051e-05,2]
[394462284,1763600797405,-83.03569083,9.051e-05,2]
[394462285,1763600797428,-195.12127663,9.051e-05,2]
[394462286,1763600801069,-172.35629652,9.051e-05,2]
[394462287,1763600802687,-132.52242685,9.051e-05,2]
[394462288,1763600802709,-270.19209818,9.051e-05,2]
[394462289,1763600804250,-160.93502787,9.051e-05,2]
[394462290,1763600808440,-68.87287395,9.051e-05,2]
[394462291,1763600808464,-126.35175682,9.051e-05,2]
[394462292,1763600811204,-373.64824318,9.051e-05,2]
[394462293,1763600811227,-126.35175682,9.051e-05,2]
[394462294,1763600821658,150.71,1e-05,2]
[394462295,1763600822022,150.71,1e-05,2]
[394462296,1763600822297,-373.64824318,9.051e-05,2]
[394462297,1763600822326,-24.44776657,9.051e-05,2]
[394462298,1763600822369,150.71,1e-05,2]
[394462299,1763600822791,150.71,1e-05,2]
[394462300,1763600822947,150.71,1e-05,2]
[394462301,1763600823221,150.71,1e-05,2]
[394462302,1763600823545,150.71,1e-05,2]
[394462303,1763600823893,150.71,1e-05,2]
[394462304,1763600824165,150.71,1e-05,2]
[394462305,1763600824534,150.71,1e-05,2]
[394462306,1763600824982,150.71,1e-05,2]
[394462307,1763600825268,150.71,1e-05,2]
[394462308,1763600825537,150.71,1e-05,2]
[394462309,1763600825850,150.71,1e-05,2]
[394462310,1763600826142,150.71,1e-05,2]
[394462311,1763600826428,150.71,1e-05,2]
[394462312,1763600826718,150.71,1e-05,2]
[394462313,1763600827129,150.71,1e-05,2]
[394462314,1763600827458,150.71,1e-05,2]
[394462315,1763600827739,150.71,1e-05,2]
[394462316,1763600828020,150.71,1e-05,2]
[394462317,1763600828296,150.71,1e-05,2]
[394462318,1763600828572,150.71,1e-05,2]
[394462319,1763600828854,150.71,1e-05,2]
[394462320,1763600829145,150.71,1.1e-05,2]
[394462321,1763600829464,150.71,1.1e-05,2]
[394462322,1763600829833,150.71,1.1e-05,2]
[394462323,1763600830136,150.71,1.1e-05,2]
[394462324,1763600830477,150.71,1.1e-05,2]
[394462325,1763600830794,150.71,1.1e-05,2]
[394462326,1763600831098,150.71,1.1e-05,2]
[394462327,1763600831435,150.71,1.1e-05,2]
[394462328,1763600831683,150.71,1.1e-05,2]
[394462329,1763600832098,150.71,1.1e-05,2]
[394462330,1763600832387,150.71,1.1e-05,2]
[394462331,1763600832680,150.71,1.1e-05,2]
[394462332,1763600833110,150.71,1.1e-05,2]
[394462333,1763600833295,150.71,1.1e-05,2]
[394462334,1763600833582,150.71,1.1e-05,2]
[394462335,1763600833871,150.71,1.1e-05,2]
[394462336,1763600834166,150.71,1.1e-05,2]
[394462337,1763600834450,150.71,1.1e-05,2]
[394462338,1763600834737,150.71,1.1e-05,2]
[394462339,1763600835052,150.71,1.1e-05,2]
[394462340,1763600835395,150.71,1.1e-05,2]
[394462341,1763600835715,150.71,1.1e-05,2]
[394462342,1763600836137,150.71,1.1e-05,2]
[394462343,1763600836484,150.71,1.1e-05,2]
[394462347,1763600928174,-193.60993279,9.05e-05,2]
[394462348,1763600929895,-106.39006721,9.05e-05,2]
[394462349,1763600929919,-49.69814799,9.051e-05,2]
[394462350,1763600934719,-170.65637435,9.051e-05,2]
[394462351,1763600934742,-179.87132641,9.051e-05,2]
[394462352,1763600937272,-320.12867359,9.051e-05,2]
[394462353,1763600937295,-86.78670373,9.051e-05,2]
[394462354,1763600940360,-387.49182943,9.051e-05,2]
[394462355,1763600942551,-25.72146684,9.051e-05,2]
[394462356,1763600942573,-271.94114954,9.051e-05,2]
[394462357,1763600945178,-156.0,9.05e-05,2]
[394462358,1763600945201,-74.54577413,9.051e-05,2]
[394462359,1763600948492,-153.51307633,9.051e-05,2]
[394462360,1763600948518,-143.14975469,9.051e-05,2]
[394462361,1763600950288,-178.95242674,9.051e-05,2]
[394462362,1763600952428,-177.89781857,9.051e-05,2]
[394462363,1763600952450,-140.77799666,9.051e-05,2]
[394462364,1763600955132,-221.65104094,9.051e-05,2]
[394462365,1763600958464,-137.5709624,9.051e-05,2]
[394462366,1763600958489,-99.71193107,9.051e-05,2]
[394462369,1763600960387,-400.28806893,9.051e-05,2]
[394462370,1763600960408,-32.97741397,9.051e-05,2]
[394462371,1763600963154,-367.56185842,9.051e-05,2]
[394462372,1763600966362,-99.46072761,9.051e-05,2]
[394462373,1763600966383,-215.54897975,9.051e-05,2]
[394462374,1763600969015,-234.4724692,9.051e-05,2]
[394462375,1763600969036,-27.00050913,9.051e-05,2]
[394462376,1763600972884,-172.48931111,9.051e-05,2]
[394462377,1763600975018,-300.51017976,9.051e-05,2]
[394462378,1763600975041,-66.00563051,9.051e-05,2]
[394462379,1763600978212,-214.88767577,9.051e-05,2]
[394462380,1763600982110,-219.10669372,9.051e-05,2]
[394462381,1763600982132,-292.91633164,9.051e-05,2]
[394462382,1763600985410,-292.99022222,9.05e-05,2]
[394462383,1763600987609,-207.00977778,9.05e-05,2]
[394462384,1763600987635,-207.08366836,9.051e-05,2]
[394462385,1763600987657,-27.35125035,9.051e-05,2]
[394462387,1763600989958,-300.0,9.051e-05,2]
[394462388,1763600993907,-172.64874965,9.051e-05,2]
[394462389,1763600993930,-184.14610089,9.051e-05,2]
[394462390,1763600995434,-300.0,9.051e-05,2]
[394462391,1763600998379,-15.85389911,9.051e-05,2]
[394462392,1763600998402,-179.83529922,9.051e-05,2]
[394462393,1763601000082,-314.00447584,9.051e-05,2]
[394462394,1763601000110,-100.13364448,9.051e-05,2]
[394462395,1763601001693,-399.86635552,9.051e-05,2]
[394462396,1763601001721,-209.11801782,9.051e-05,2]
[394462397,1763601004232,2000.0,0.00013699,7]
[394462398,1763601005612,-250.0,9.05e-05,2]
[394462399,1763601005636,-250.0,9.05e-05,2]
[394462400,1763601008434,-50.0,9.05e-05,2]
[394462401,1763601008456,-126.0016093,9.05e-05,2]
[394462402,1763601011816,-259.47912152,9.046e-05,2]
[394462403,1763601013514,1699.12410296,8.956e-05,2]
[394462404,1763601013947,-206.88419284,9.046e-05,2]
[394462405,1763601021419,-500.0395443,9.046e-05,2]
[394462406,1763601023529,-33.59714134,9.046e-05,2]
[394462407,1763601023550,-147.3476743,9.046e-05,2]
[394462408,1763601025164,-414.16303167,9.046e-05,2]
[394462409,1763601027520,-293.55237478,9.046e-05,2]
[394462410,1763601029603,-144.93691925,9.046e-05,2]
[394462411,1763601029625,-24.82976668,9.046e-05,2]
[394462412,1763601031273,-335.04494031,9.046e-05,2]
[394462425,1763601032554,-640.12529301,9.046e-05,2]
[394462426,1763601032565,-1000.0,9.046e-05,2]
[394462427,1763601032578,-1000.0,9.046e-05,2]
[394462428,1763601032588,-1000.0,9.046e-05,2]
[394462429,1763601032598,-1000.0,9.046e-05,2]
[394462430,1763601032607,-1000.0,9.046e-05,2]
[394462431,1763601032617,-1000.0,9.046e-05,2]
[394462432,1763601032626,-1000.0,9.046e-05,2]
[394462433,1763601032635,-1000.0,9.046e-05,2]
[394462434,1763601032645,-1000.0,9.046e-05,2]
[394462435,1763601032655,-1000.0,9.046e-05,2]
[394462436,1763601032664,-1000.0,9.046e-05,2]
[394462437,1763601032674,-1000.0,9.046e-05,2]
[394462438,1763601032683,-1000.0,9.046e-05,2]
[394462439,1763601032693,-1000.0,9.046e-05,2]
[394462440,1763601032702,-1000.0,9.046e-05,2]
[394462441,1763601032712,-1000.0,9.046e-05,2]
[394462442,1763601032722,-1000.0,9.046e-05,2]
[394462443,1763601032731,-1073.9983907,9.05e-05,2]
[394462444,1763601032742,-500.0,9.05e-05,2]
[394462445,1763601032751,-290.88198218,9.051e-05,2]
[394462446,1763601032760,-500.0,9.051e-05,2]
[394462447,1763601032771,-500.0,9.051e-05,2]
[394462448,1763601032781,-500.0,9.051e-05,2]
[394462449,1763601032790,-500.0,9.051e-05,2]
[394462450,1763601032800,-500.0,9.051e-05,2]
[394462451,1763601032814,-500.0,9.051e-05,2]
[394462452,1763601032824,-500.0,9.051e-05,2]
[394462453,1763601032834,-500.0,9.051e-05,2]
[394462454,1763601032843,-500.0,9.051e-05,2]
[394462455,1763601032853,-500.0,9.051e-05,2]
[394462456,1763601032863,-500.0,9.051e-05,2]
[394462457,1763601032873,-500.0,9.051e-05,2]
[394462458,1763601032884,-500.0,9.051e-05,2]
[394462459,1763601032894,-500.0,9.051e-05,2]
[394462460,1763601032903,-500.0,9.051e-05,2]
[394462461,1763601032913,-500.0,9.051e-05,2]
[394462462,1763601032922,-500.0,9.051e-05,2]
[394462463,1763601032931,-500.0,9.051e-05,2]
[394462464,1763601032941,-500.0,9.051e-05,2]
[394462465,1763601032950,-500.0,9.051e-05,2]
[394462466,1763601032960,-500.0,9.051e-05,2]
[394462467,1763601032970,-500.0,9.051e-05,2]
[394462468,1763601032979,-500.0,9.051e-05,2]
[394462469,1763601032990,-500.0,9.051e-05,2]
[394462470,1763601032999,-500.0,9.051e-05,2]
[394462471,1763601033009,-500.0,9.051e-05,2]
[394462472,1763601033019,-500.0,9.051e-05,2]
[394462473,1763601033028,-500.0,9.051e-05,2]
[394462474,1763601033038,-500.0,9.051e-05,2]
[394462475,1763601033047,-500.0,9.051e-05,2]
[394462476,1763601033057,-500.0,9.051e-05,2]
[394462477,1763601033066,-500.0,9.051e-05,2]
[394462478,1763601033075,-500.0,9.051e-05,2]
[394462479,1763601033085,-500.0,9.051e-05,2]
[394462480,1763601033099,-500.0,9.051e-05,2]
[394462481,1763601033108,-500.0,9.051e-05,2]
[394462482,1763601033117,-500.0,9.051e-05,2]
[394462483,1763601033126,-500.0,9.051e-05,2]
[394462484,1763601033137,-500.0,9.051e-05,2]
[394462485,1763601033146,-500.0,9.051e-05,2]
[394462486,1763601033155,-500.0,9.051e-05,2]
[394462487,1763601033164,-500.0,9.051e-05,2]
[394462488,1763601033174,-500.0,9.051e-05,2]
[394462489,1763601033184,-500.0,9.051e-05,2]
[394462490,1763601033193,-500.0,9.051e-05,2]
[394462491,1763601033202,-500.0,9.051e-05,2]
[394462492,1763601033211,-500.0,9.051e-05,2]
[394462493,1763601033220,-500.0,9.051e-05,2]
[394462494,1763601033230,-500.0,9.051e-05,2]
[394462495,1763601033240,-197.59174397,9.051e-05,2]
[394462496,1763601033249,-500.0,9.051e-05,2]
[394462497,1763601033258,-500.0,9.051e-05,2]
[394462498,1763601033268,-500.0,9.051e-05,2]
[394462499,1763601033278,-500.0,9.051e-05,2]
[394462500,1763601033287,-500.0,9.051e-05,2]
[394462501,1763601033298,-500.0,9.051e-05,2]
[394462502,1763601033308,-500.0,9.051e-05,2]
[394462503,1763601033318,-500.0,9.051e-05,2]
[394462504,1763601033329,-500.0,9.051e-05,2]
[394462505,1763601033338,-500.0,9.051e-05,2]
[394462506,1763601033348,-500.0,9.051e-05,2]
[394462507,1763601033358,-42.20943206,9.051e-05,2]
[394462508,1763601034908,-153.69344454,9.051e-05,2]
[394462509,1763601034936,-2.55390884,9.051e-05,2]
[394462510,1763601036852,2359.87470699,8.96e-05,2]
[394462524,1763601037854,-217.5816096,9.051e-05,2]
[394462527,1763601037882,-219.00120641,9.052e-05,2]
[394462550,1763601041652,-4e-08,9.052e-05,2]
[394462551,1763601041856,-199.85726801,9.052e-05,2]
[394462553,1763601042952,-355.72437129,9.052e-05,2]
[394462561,1763601044539,-102.69725347,9.052e-05,2]
[394462562,1763601044576,-184.24335779,9.052e-05,2]
[394462563,1763601044635,1145.40966943,8.961e-05,2]
[394462566,1763601046061,-166.11388614,9.052e-05,2]
[394462569,1763601049934,-194.47980349,9.052e-05,2]
[394462570,1763601053515,-156.81120157,9.052e-05,2]
[394462571,1763601055763,-180.28029699,9.052e-05,2]
[394462572,1763601059323,-206.27026912,9.052e-05,2]
[394462573,1763601059883,1693.24885615,8.961e-05,2]
[394462574,1763601062024,-203.70878157,9.052e-05,2]
[394462576,1763601066990,-231.00954211,9.052e-05,2]
[394462577,1763601068538,-186.60622081,9.052e-05,2]
[394462578,1763601070735,-388.38423708,9.052e-05,2]
[394462579,1763601073990,-221.49869657,9.052e-05,2]
[394462580,1763601075553,3497.28958541,8.961e-05,2]
[394462581,1763601077331,-347.11585858,9.052e-05,2]
[394462582,1763601079002,501.69258532,0.00013721,7]
[394462583,1763601080836,-207.03683551,9.052e-05,2]
[394462584,1763601083251,-500.0,9.052e-05,2]
[394462585,1763601083816,1304.18718202,8.961e-05,2]
[394462586,1763601083840,6408.64171949,8.961e-05,2]
[394462587,1763601085596,-500.0,9.052e-05,2]
[394462588,1763601087704,-183.716,9.051e-05,2]
[394462590,1763601101975,341.17577,0.000328,120]
[394462591,1763601173081,500.0,0.00040108,30]
[394462592,1763601173317,500.0,0.00040108,30]
[394462593,1763601173561,500.0,0.00040108,30]
[394462594,1763601173804,393.41849807,0.00040108,30]
[394462595,1763601196454,-494.248,8.87e-05,2]
[394462596,1763601196483,-215.73280807,8.915e-05,2]
[394462597,1763601196512,-183.716,8.96e-05,2]
[394462598,1763601197753,-292.74752518,9.043e-05,2]
[394462599,1763601199957,-225.60230547,9.043e-05,2]
[394462600,1763601202619,-180.28029695,9.043e-05,2]
[394462601,1763601205046,-168.34857367,9.043e-05,2]
[394462602,1763601206619,-279.59997854,9.043e-05,2]
[394462603,1763601208191,-53.42132019,9.043e-05,2]
[394462604,1763601208211,-110.66606109,9.043e-05,2]
[394462605,1763601210997,-166.908366,9.043e-05,2]
[394462606,1763601214810,-22.42557291,9.043e-05,2]
[394462607,1763601214836,-180.66186089,9.044e-05,2]
[394462608,1763601216326,-319.33813911,9.044e-05,2]
[394462609,1763601216348,-1.11717193,9.044e-05,2]
[394462610,1763601219580,-498.88282807,9.044e-05,2]
[394462611,1763601219604,-146.92127166,9.044e-05,2]
[394462612,1763601222749,-293.57971951,9.044e-05,2]
[394462613,1763601224927,-59.49900883,9.044e-05,2]
[394462614,1763601224953,-184.33526996,9.044e-05,2]
[394462615,1763601227050,-221.41154178,9.044e-05,2]
[394462616,1763601230318,-94.25318826,9.044e-05,2]
[394462617,1763601230347,-224.58521142,9.044e-05,2]
[394462618,1763601234086,-194.0172991,9.044e-05,2]
[394462619,1763601237418,-81.39748948,9.044e-05,2]
[394462620,1763601237442,-251.78353984,9.044e-05,2]
[394462621,1763601239623,-224.80113591,9.044e-05,2]
[394462622,1763601242494,-300.0,9.043e-05,2]
[394462623,1763601242526,-23.41532425,9.044e-05,2]
[394462624,1763601242552,-180.75547521,9.044e-05,2]
[394462625,1763601244750,-311.16080473,9.044e-05,2]
[394462626,1763601246224,-8.08372006,9.044e-05,2]
[394462627,1763601246250,-168.56348179,9.044e-05,2]
[394462628,1763601248848,-210.98810475,9.044e-05,2]
[394462629,1763601253295,-169.91928724,9.044e-05,2]
[394462630,1763601255395,-56.27552812,9.044e-05,2]
[394462631,1763601255419,-447.707201,9.044e-05,2]
[394462632,1763601256988,-52.292799,9.044e-05,2]
[394462633,1763601257011,-146.98611945,9.044e-05,2]
[394462634,1763601260239,-244.7272698,9.044e-05,2]
[394462635,1763601265128,-108.28661075,9.044e-05,2]
[394462636,1763601265152,-424.28292373,9.044e-05,2]
[394462637,1763601266630,-75.71707627,9.044e-05,2]
[394462638,1763601266656,-79.38898101,9.044e-05,2]
[394462639,1763601269051,-219.89751985,9.044e-05,2]
[394462640,1763601270661,-7.05429844,9.044e-05,2]
[394462641,1763601270685,-357.83745577,9.044e-05,2]
[394462642,1763601272828,-142.16254423,9.044e-05,2]
[394462643,1763601272852,-165.74333688,9.044e-05,2]
[394462644,1763601274129,632.58755285,8.954e-05,2]
[394462645,1763601275083,-169.45799399,9.044e-05,2]
[394462646,1763601278733,-345.72934885,9.049e-05,2]
[394462647,1763601281536,-154.27065115,9.049e-05,2]
[394462648,1763601281564,-76.99641037,9.049e-05,2]
[394462649,1763601283297,-166.908366,9.049e-05,2]
[394462650,1763601284934,-256.09522363,9.049e-05,2]
[394462651,1763601284966,-151.45982258,9.049e-05,2]
[394462652,1763601287757,-348.54017742,9.049e-05,2]
[394462653,1763601287784,-282.85205043,9.049e-05,2]
[394462654,1763601296375,231.26706152,8.959e-05,2]
[394462655,1763601298691,50000.000001,0.00040104,20]
[394462656,1763601306905,250.0,0.00040104,30]
[394462657,1763601307553,250.0,0.00040104,30]
[394462658,1763601308305,250.0,0.00040104,30]
[394462659,1763601308875,250.0,0.00040104,30]
[394462660,1763601309516,250.0,0.00040104,30]
[394462661,1763601310134,250.0,0.00040104,30]
[394462662,1763601310757,250.0,0.00040104,30]
[394462663,1763601311458,250.0,0.00040104,30]
[394462664,1763601312086,250.0,0.00040104,30]
[394462665,1763601312691,250.0,0.00040104,30]
[394462666,1763601313303,250.0,0.00040104,30]
[394462667,1763601314127,250.0,0.00040104,30]
[394462668,1763601330664,5001.0,0.00040104,20]
[394462669,1763601375664,446.26113174,8.958e-05,2]
[394462670,1763601405515,500.0,0.00040104,30]
[394462671,1763601405798,500.0,0.00040104,30]
[394462672,1763601406022,500.0,0.00040104,30]
[394462673,1763601406254,500.0,0.00040104,30]
[394462674,1763601406516,500.0,0.00040104,30]
[394462675,1763601406927,500.0,0.00040104,30]
[394462676,1763601406999,500.0,0.00040104,30]
[394462677,1763601407354,500.0,0.00040104,30]
[394462678,1763601407609,500.0,0.00040104,30]
[394462679,1763601407839,500.0,0.00040104,30]
[394462680,1763601408129,576.8708578,0.00040104,120]
[394462681,1763601417355,874.97779318,8.956e-05,2]
[394462682,1763601433818,369.391269,8.955e-05,2]
[394462683,1763601433862,8309.37980608,8.952e-05,2]
[394462684,1763601433885,10000.01,8.952e-05,2]
[394462685,1763601473261,-2478.26942794,8.685e-05,2]
[394462686,1763601473289,-2478.26942794,8.773e-05,2]
[394462687,1763601479063,-211.41815191,8.818e-05,2]
[394462688,1763601479090,-4775.18854416,8.862e-05,2]
[394462689,1763601485124,-211.41815191,8.729e-05,2]
[394462690,1763601485154,-26.79660786,8.862e-05,2]
[394462691,1763601485181,-300.0,8.951e-05,2]
[394462693,1763601533720,-2216.84977022,8.685e-05,2]
[394462694,1763601533752,-2216.84977022,8.773e-05,2]
[394462695,1763601533927,-2216.84977022,8.862e-05,2]
[394462696,1763601533956,-512.09610179,8.946e-05,2]
[394462697,1763601536682,-7938.0676784,8.952e-05,2]
[394462698,1763601539644,-10000.01,8.952e-05,2]
[394462699,1763601545689,-226.94783428,8.862e-05,2]
[394462700,1763601545716,-300.0,8.951e-05,2]
[394462701,1763601545764,-8946.11433144,8.952e-05,2]
[394462702,1763601551763,-226.94783428,8.773e-05,2]
[394462703,1763601551852,-9546.11433144,8.952e-05,2]
[394462706,1763601585211,-798.45441019,8.685e-05,2]
[394462707,1763601585242,-798.45441019,8.773e-05,2]
[394462708,1763601585273,-798.45441019,8.862e-05,2]
[394462709,1763601585341,-5209.28353886,8.952e-05,2]
[394462710,1763601585393,-10000.01,8.952e-05,2]
[394462711,1763601585513,-10000.01,8.952e-05,2]
[394462712,1763601591120,-4325.25499369,8.862e-05,2]
[394462713,1763601591144,-1349.50001262,8.862e-05,2]
[394462714,1763601591221,-10000.01,8.952e-05,2]
[394462715,1763601591326,-10000.01,8.952e-05,2]
[394462716,1763601602268,198.34,1e-05,2]
[394462719,1763601661742,198.33,1e-05,2]
[394462737,1763601718726,211.9726824,7.969e-05,2]
[394462744,1763601841741,-606.0,8.597e-05,2]
[394462745,1763601841770,-606.0,8.684e-05,2]
[394462746,1763601841799,-211.72093172,8.817e-05,2]
[394462747,1763601845388,606.0,8.511e-05,2]
[394462748,1763601853158,1506.0,8.772e-05,2]
[394462749,1763601868820,1506.0,8.772e-05,2]
[394462750,1763601876643,1506.0,8.772e-05,2]
[394462751,1763601892248,1506.0,8.772e-05,2]
[394462752,1763601900088,522.56813656,8.772e-05,2]
[394462753,1763601900110,983.43186344,8.772e-05,2]
[394462754,1763601915206,300.0,8.771e-05,2]
[394462755,1763601923170,300.0,8.771e-05,2]
[394462758,1763601939750,300.0,8.771e-05,2]
[394462759,1763601947573,300.0,8.771e-05,2]
[394462760,1763601963425,300.0,8.771e-05,2]
[394462761,1763601971678,1200.0,8.772e-05,2]
[394462763,1763601987595,1200.0,8.772e-05,2]
[394462764,1763601995611,1200.0,8.772e-05,2]
[394462765,1763602011022,1200.0,8.772e-05,2]
[394462767,1763602019315,1200.0,8.772e-05,2]
[394462769,1763602034692,1200.0,8.772e-05,2]
[394462772,1763602042438,164128.92386857,0.00040105,20]
[394462773,1763602043071,1200.0,8.772e-05,2]
[394462775,1763602058254,400.01,8.772e-05,2]
[394462776,1763602058280,799.99,8.772e-05,2]
[394462779,1763602066633,1200.0,8.772e-05,2]
[394462781,1763602090311,874.97779318,8.768e-05,2]
[394462787,1763602112380,874.97779318,8.768e-05,2]
[394462788,1763602134840,874.97779318,8.768e-05,2]
[394462789,1763602137860,1159.89,0.00016512,30]
[394462790,1763602138277,2319.77,0.00018013,30]
[394462791,1763602153155,-874.97779318,8.857e-05,2]
[394462792,1763602153175,-105.02220682,8.902e-05,2]
[394462793,1763602156796,449.38986915,0.00013724,7]
[394462794,1763602156825,874.97779318,8.768e-05,2]
[394462795,1763602203948,2000.0,0.00013699,7]
[394462799,1763602212008,163.23980719,0.00040105,120]
[394462805,1763602217006,175.88497599,0.00040105,20]
[394462808,1763602230539,5301.0,0.00040105,20]
[394462919,1763602237761,156.42920111,0.00040105,30]
[394462927,1763602241157,611.0,0.0003287,120]
[394462932,1763602244618,-102.46430627,8.902e-05,2]
[394462933,1763602244627,-360.63464875,8.946e-05,2]
[394462934,1763602245356,-514.34314443,8.946e-05,2]
[394462935,1763602245365,-500.0,8.947e-05,2]
[394462936,1763602245375,-500.0,8.947e-05,2]
[394462937,1763602245384,-389.45349603,8.947e-05,2]
[394462938,1763602245393,-500.0,8.947e-05,2]
[394462940,1763602245402,-500.0,8.947e-05,2]
[394462942,1763602245411,-500.0,8.947e-05,2]
[394462944,1763602245420,-500.0,8.947e-05,2]
[394462946,1763602245429,-500.0,8.947e-05,2]
[394462948,1763602245438,-500.0,8.947e-05,2]
[394462950,1763602245447,-395.81156413,8.947e-05,2]
[394462952,1763602245456,-500.0,8.947e-05,2]
[394462954,1763602245465,-500.0,8.947e-05,2]
[394462956,1763602245474,-500.0,8.947e-05,2]
[394462958,1763602245483,-500.0,8.947e-05,2]
[394462959,1763602245492,-500.0,8.947e-05,2]
[394462960,1763602245501,-338.28050716,8.947e-05,2]
[394462961,1763602245511,-500.0,8.947e-05,2]
[394462962,1763602245521,-500.0,8.947e-05,2]
[394462963,1763602245530,-500.0,8.947e-05,2]
[394462964,1763602245539,-500.0,8.947e-05,2]
[394462965,1763602245548,-500.0,8.947e-05,2]
[394462966,1763602245556,-609.33509153,8.947e-05,2]
[394462967,1763602245565,-500.0,8.947e-05,2]
[394462968,1763602245574,-500.0,8.947e-05,2]
[394462969,1763602245584,-500.0,8.947e-05,2]
[394462970,1763602245593,-500.0,8.947e-05,2]
[394462971,1763602245602,-500.0,8.947e-05,2]
[394462972,1763602245610,-500.0,8.947e-05,2]
[394462973,1763602245619,-500.0,8.947e-05,2]
[394462974,1763602245628,-500.0,8.947e-05,2]
[394462975,1763602245637,-500.0,8.947e-05,2]
[394462976,1763602245646,-500.0,8.947e-05,2]
[394462977,1763602245654,-500.0,8.947e-05,2]
[394462978,1763602245664,-300.0,8.947e-05,2]
[394462979,1763602245673,-329.0,8.947e-05,2]
[394462980,1763602245682,-1200.0,8.948e-05,2]
[394462981,1763602245691,-500.0,8.948e-05,2]
[394462982,1763602245700,-398.30827377,8.952e-05,2]
[394462991,1763602252608,155.244,0.00040105,120]
[394462993,1763602256748,3689.0,0.00040105,20]
[394463002,1763602281434,200.0,0.00040105,30]
[394463005,1763602284686,381.12996704,8.509e-05,2]
[394463007,1763602287383,686.03394067,8.678e-05,2]
[394463008,1763602294137,578.99530188,0.00013724,7]
[394463012,1763602302377,396.386,8.772e-05,2]